{"text_format":"1","workbook":"xlsx","n_sheets":2,"sheets":["Аркуш1","Опис Проекту"],"not_rendered":{"charts":0,"images":1,"macros":1,"external_links":1,"defined_names":16,"comments":0,"pivot_tables":0},"unopened":[],"bounds":{"document_bytes":16777216,"sheet_cells":100000,"rows_first":2000,"rows_last":500,"rows_between":2000,"halvings":0,"cell_chars":16384,"cell_head_chars":4096},"cells_cut":0,"cells_raw":0,"read":"whole","date_system":"1900"}

{"sheet":"Аркуш1","index":0,"n_rows":6,"n_cols":2,"rows_kept":6,"cut":false,"hidden":false,"merged":[[5,1,9,8]]}
[]
[]
[]
[null,"Шановні енергетичні аудитори та представники ОСББ,"]
[]
[null,"Це є тестова версія файлу для заповнення Форми Опису Проекту. Файл знаходиться у дослідній експлуатації. Якщо ви маєте зауваження або пропозиції, будь ласка, напишіть нам: info@eefund.org.ua"]

{"sheet":"Опис Проекту","index":1,"n_rows":234,"n_cols":58,"rows_kept":234,"cut":false,"hidden":false,"merged":[[173,29,174,41],[175,29,177,41],[178,29,179,41],[180,29,182,41],[222,4,222,41],[231,4,231,38],[143,29,144,41],[145,29,146,41],[147,29,149,41],[150,29,153,41],[154,29,156,41],[157,29,159,41],[160,29,161,41],[162,29,164,41],[168,29,170,41],[171,29,172,41],[217,4,219,6],[217,7,219,22],[207,4,208,6],[207,7,208,22],[207,23,208,29],[207,30,208,41],[160,4,161,6],[160,7,161,28],[114,7,116,17],[117,7,122,17],[117,18,122,22],[117,23,122,27],[90,4,91,41],[92,4,96,6],[92,7,96,17],[92,18,96,22],[92,23,96,27],[97,7,100,17],[101,28,103,41],[104,28,104,41],[105,28,105,41],[84,7,89,17],[84,18,89,22],[84,23,89,27],[79,7,81,17],[79,18,81,22],[79,23,81,27],[101,4,104,6],[101,7,104,17],[101,18,104,22],[101,23,104,27],[105,7,106,17],[105,18,106,22],[105,23,106,27],[111,4,113,6],[107,4,110,6],[107,7,110,17],[107,18,110,22],[107,23,110,27],[111,7,113,17],[111,18,113,22],[111,23,113,27],[106,28,106,41],[110,28,110,41],[114,18,116,22],[114,23,116,27],[145,4,146,6],[145,7,146,28],[147,7,149,28],[147,4,149,6],[140,4,142,6],[140,7,142,28],[143,7,144,28],[143,4,144,6],[117,4,122,6],[114,4,116,6],[123,4,133,41],[105,4,106,6],[140,29,142,41],[107,28,109,41],[111,28,112,41],[113,28,113,41],[116,28,116,41],[114,28,115,41],[117,28,120,41],[121,28,122,41],[162,4,164,6],[162,7,164,28],[150,4,153,6],[150,7,153,28],[154,4,156,6],[154,7,156,28],[157,4,159,6],[157,7,159,28],[168,4,170,6],[168,7,170,28],[171,4,172,6],[171,7,172,28],[183,4,186,6],[183,7,186,28],[187,4,189,6],[187,7,189,28],[178,4,179,6],[178,7,179,28],[180,4,182,6],[180,7,182,28],[173,4,174,6],[173,7,174,28],[175,4,177,6],[175,7,177,28],[183,29,186,41],[187,29,189,41],[195,4,196,6],[195,7,196,28],[190,4,192,6],[190,7,192,28],[193,4,194,6],[193,7,194,28],[190,29,192,41],[193,29,194,41],[195,29,196,41],[200,4,204,6],[200,7,204,22],[205,4,206,6],[205,7,206,22],[205,23,206,29],[205,30,206,41],[199,4,199,30],[217,23,219,29],[217,30,219,41],[209,4,210,6],[209,7,210,22],[209,23,210,29],[209,30,210,41],[14,0,15,43],[10,0,13,43],[97,4,100,6],[134,4,137,41],[220,4,221,6],[220,7,221,22],[220,23,221,29],[220,30,221,41],[213,4,214,6],[213,7,214,22],[213,23,214,29],[213,30,214,41],[215,4,216,6],[215,7,216,22],[215,23,216,29],[215,30,216,41],[211,4,212,6],[211,7,212,22],[211,23,212,29],[211,30,212,41],[200,30,204,41],[200,23,204,29],[60,4,60,41],[17,0,18,43],[19,0,20,43],[21,0,22,43],[34,1,35,42],[58,0,58,43],[29,1,30,42],[31,1,33,42],[23,0,24,43],[79,28,80,41],[81,28,81,41],[84,28,86,41],[87,28,89,41],[92,28,95,41],[96,28,96,41],[97,28,99,41],[100,28,100,41],[61,4,63,41],[74,4,75,41],[66,4,73,6],[66,7,73,17],[66,18,73,22],[66,23,73,27],[66,28,73,41],[76,4,78,6],[76,7,78,17],[76,18,78,22],[76,23,78,27],[76,28,77,41],[78,28,78,41],[82,4,83,41],[84,4,89,6],[79,4,81,6],[97,18,100,22],[97,23,100,27],[226,4,226,30],[226,32,226,38],[232,4,232,30],[232,32,232,38],[233,4,234,30],[233,32,233,38],[225,4,225,41],[227,4,228,30],[227,32,227,38]]}
[]
[null,null,null,null,null,null,null,null,null,null,null,null,null,null,null,null,null,null,null,null,null,null,null,null,null,null,null,null,null,null,null,null,null,null,null,null,null,null,null,null,null,null,null,null,null,"Оберіть пакет",null,"Б",null,null,null,{"$f":"IF(AV2=\"А\",TRUE,FALSE)","v":false},"А"]
[null,null,null,null,null,null,null,null,null,null,null,null,null,null,null,null,null,null,null,null,null,null,null,null,null,null,null,null,null,null,null,null,null,null,null,null,null,null,null,null,null,null,null,null,null,null,null,null,null,null,null,null,"Б"]
[null,null,null,null,null,null,null,null,null,null,null,null,null,null,null,null,null,null,null,null,null,null,null,null,null,null,null,null,null,null,null,null,null,null,null,null,null,null,null,null,null,null,null,null,null,null,null,null,null,null,null,{"$f":"IF(AV4=\"Енергоаудитор\",TRUE,FALSE)","v":false},"Інженер-проектувальник"]
[null,null,null,null,null,null,null,null,null,null,null,null,null,null,null,null,null,null,null,null,null,null,null,null,null,null,null,null,null,null,null,null,null,null,null,null,null,null,null,null,null,null,null,null,null,null,null,null,null,null,null,null,"Інженер-проектувальник"]
[]
[]
[]
[]
[]
["ФОРМА КОРЕГУВАННЯ ОПИСУ ПРОЕКТУ"]
[]
[]
[]
[]
[]
[]
[{"$f":"IF(AZ2=TRUE,\"У ВІДПОВІДНОСТІ ДО ПАКЕТУ ЗАХОДІВ ''А''\",\"У ВІДПОВІДНОСТІ ДО ПАКЕТУ ЗАХОДІВ ''Б''\")","v":"У ВІДПОВІДНОСТІ ДО ПАКЕТУ ЗАХОДІВ ''Б''"}]
[]
["ПРОГРАМИ ПІДТРИМКИ ЕНЕРГОМОДЕРНІЗАЦІЇ"]
[]
["БАГАТОКВАРТИРНИХ БУДИНКІВ"]
[]
["«ЕНЕРГОДІМ»"]
[]
[]
[]
[]
[]
[null,"Об’єднання співвласників багатоквартирного будинку: "]
[]
[null,"ОСББ \"______________\", ____________________________"]
["___________________________________________________________________"]
[]
[null,"(Найменування ОСББ, адреса будинку)"]
[]
[]
[]
[]
[]
[]
[]
[]
[]
[]
[]
[]
[]
[]
[]
[]
[]
[]
[]
[]
[]
[]
[]
[]
[]
[null,null,null,null,{"$f":"IF(AZ2=TRUE,\"4. ПЕРЕЛІК ЕНЕРГОЕФЕКТИВНИХ ЗАХОДІВ ДО ПАКЕТУ ЗАХОДІВ “[А]”*\",\"4. ПЕРЕЛІК ЕНЕРГОЕФЕКТИВНИХ ЗАХОДІВ ДО ПАКЕТУ ЗАХОДІВ “[Б]”*\")","v":"4. ПЕРЕЛІК ЕНЕРГОЕФЕКТИВНИХ ЗАХОДІВ ДО ПАКЕТУ ЗАХОДІВ “[Б]”*"}]
[null,null,null,null,"(У даному розділі для кожного заходу слід зробити відповідні позначки щодо його подальшого впровадження. Не можна видаляти ті або інші заходи, змінювати їх назву або додавати інші заходи. Усі коментарі, що пояснюють суть заходів, обраних для впровадження, слід подавати у розділі 6)"]
[]
[]
[]
[null,null,null,null,"4.1. Обов'язкові заходи",null,null,null,null,null,null,null,null,null,null,null,null,null,null,null,null,null,null,null,null,null,null,null,null,null,null,null,null,null,null,null,null,null,null,null,null,null,null,null,null,null,null,null,null,null,null,null,null,null,null,null,"ТАК"]
[null,null,null,null,"№",null,null,"Назва заходу",null,null,null,null,null,null,null,null,null,null,"Рішення** про впровадження заходу (ТАК/НІ)",null,null,null,null,"Чи виконана допустима підстава виключення заходів з переліку обов'язкових (ТАК/НІ)",null,null,null,null,"Опис підстави виключення заходу",null,null,null,null,null,null,null,null,null,null,null,null,null,null,null,null,null,null,null,null,null,null,null,null,null,null,null,"НІ"]
[]
[]
[]
[]
[]
[]
[]
[null,null,null,null,"Для будинків із централізованим опаленням:"]
[]
[null,null,null,null,"4.1.1",null,null,"Встановлення вузла комерційного обліку теплової енергії",null,null,null,null,null,null,null,null,null,null,"ТАК",null,null,null,null,"НІ",null,null,null,null,null,null,null,null,null,null,null,null,null,null,null,null,null,null,null,null,null,null,null,null,null,null,null,{"$f":"IF(S77=\"ТАК\",TRUE,FALSE)","v":true},null,{"$f":"IF(AZ77=TRUE,1,0)","v":1},null,null,"Вузол комерційного обліку введено в експлуатацію"]
[null,null,null,null,null,null,null,null,null,null,null,null,null,null,null,null,null,null,null,null,null,null,null,null,null,null,null,null,null,null,null,null,null,null,null,null,null,null,null,null,null,null,null,null,null,null,null,null,null,null,null,null,null,null,null,null,"50% і більше споживачів перейшли на індивідуальне опалення"]
[null,null,null,null,null,null,null,null,null,null,null,null,null,null,null,null,null,null,null,null,null,null,null,null,null,null,null,null,null,null,null,null,null,null,null,null,null,null,null,null,null,null,null,null,null,null,null,null,null,null,null,null,null,null,null,null,"Технічна неможливість впровадження:"]
[null,null,null,null,"4.1.2",null,null,"Встановлення або модернізація індивідуального теплового пункту (ІТП)",null,null,null,null,null,null,null,null,null,null,"ТАК",null,null,null,null,"НІ",null,null,null,null,null,null,null,null,null,null,null,null,null,null,null,null,null,null,null,null,null,null,null,null,null,null,null,{"$f":"IF(S80=\"ТАК\",TRUE,FALSE)","v":true},null,{"$f":"IF(AZ80=TRUE,1,0)","v":1},null,null,"Захід впроваджується або планується до впровадження третіми сторонами "]
[null,null,null,null,null,null,null,null,null,null,null,null,null,null,null,null,null,null,null,null,null,null,null,null,null,null,null,null,null,null,null,null,null,null,null,null,null,null,null,null,null,null,null,null,null,null,null,null,null,null,null,null,null,null,null,null,"ІТП встановлено, експлуатується та забезпечує погодозалежне регулювання"]
[null,null,null,null,null,null,null,null,null,null,null,null,null,null,null,null,null,null,null,null,null,null,null,null,null,null,null,null,null,null,null,null,null,null,null,null,null,null,null,null,null,null,null,null,null,null,null,null,null,null,null,null,null,null,null,null,"50 % і більше споживачів перейшли на індивідуальне опалення"]
[null,null,null,null,"Для будинків з автономним опаленням:",null,null,null,null,null,null,null,null,null,null,null,null,null,null,null,null,null,null,null,null,null,null,null,null,null,null,null,null,null,null,null,null,null,null,null,null,null,null,null,null,null,null,null,null,null,null,null,null,null,null,null,"Технічна неможливість впровадження:"]
[null,null,null,null,null,null,null,null,null,null,null,null,null,null,null,null,null,null,null,null,null,null,null,null,null,null,null,null,null,null,null,null,null,null,null,null,null,null,null,null,null,null,null,null,null,null,null,null,null,null,null,null,null,null,null,null,"Захід впроваджується або планується до впровадження третіми сторонами "]
[null,null,null,null,"4.1.3",null,null,"Заміна або модернізація загальнобудинкового котла або/та допоміжного обладнання (наприклад, насосів, систем автоматичного регулювання тощо)",null,null,null,null,null,null,null,null,null,null,"ТАК",null,null,null,null,"НІ",null,null,null,null,null,null,null,null,null,null,null,null,null,null,null,null,null,null,null,null,null,null,null,null,null,null,null,{"$f":"IF(S85=\"ТАК\",TRUE,FALSE)","v":true},null,{"$f":"IF(AZ85=TRUE,1,0)","v":1},null,null,"Простий період окупності заходу (без врахування виплати часткового відшкодування) перевищує 10 років "]
[null,null,null,null,null,null,null,null,null,null,null,null,null,null,null,null,null,null,null,null,null,null,null,null,null,null,null,null,null,null,null,null,null,null,null,null,null,null,null,null,null,null,null,null,null,null,null,null,null,null,null,null,null,null,null,null,"Технічна неможливість впровадження:"]
[null,null,null,null,null,null,null,null,null,null,null,null,null,null,null,null,null,null,null,null,null,null,null,null,null,null,null,null,null,null,null,null,null,null,null,null,null,null,null,null,null,null,null,null,null,null,null,null,null,null,null,null,null,null,null,null,"Захід впроваджується або планується до впровадження третіми сторонами "]
[]
[]
[]
[null,null,null,null,"Незалежно від типу системи опалення (крім індивідуального опалення):"]
[]
[null,null,null,null,"4.1.4",null,null,"Теплоізоляція або/та заміна трубопроводів системи внутрішнього теплопостачання в неопалювальних приміщеннях",null,null,null,null,null,null,null,null,null,null,"ТАК",null,null,null,null,"НІ",null,null,null,null,null,null,null,null,null,null,null,null,null,null,null,null,null,null,null,null,null,null,null,null,null,null,null,{"$f":"IF(S93=\"ТАК\",TRUE,FALSE)","v":true},null,{"$f":"IF(AZ93=TRUE,1,0)","v":1},null,null,"Теплоізоляція трубопроводів теплопостачання наявна, трубопровід та теплоізоляція візуально знаходиться в задовільному стані"]
[null,null,null,null,null,null,null,null,null,null,null,null,null,null,null,null,null,null,null,null,null,null,null,null,null,null,null,null,null,null,null,null,null,null,null,null,null,null,null,null,null,null,null,null,null,null,null,null,null,null,null,null,null,null,null,null,"50 % і більше споживачів перейшли на індивідуальне опалення"]
[null,null,null,null,null,null,null,null,null,null,null,null,null,null,null,null,null,null,null,null,null,null,null,null,null,null,null,null,null,null,null,null,null,null,null,null,null,null,null,null,null,null,null,null,null,null,null,null,null,null,null,null,null,null,null,null,"Технічна неможливість впровадження:"]
[null,null,null,null,null,null,null,null,null,null,null,null,null,null,null,null,null,null,null,null,null,null,null,null,null,null,null,null,null,null,null,null,null,null,null,null,null,null,null,null,null,null,null,null,null,null,null,null,null,null,null,null,null,null,null,null,"Захід впроваджується або планується до впровадження третіми сторонами "]
[]
[null,null,null,null,"4.1.5",null,null,"Теплоізоляція або/та заміна трубопроводів системи гарячого водопостачання в неопалювальних приміщеннях",null,null,null,null,null,null,null,null,null,null,"ТАК",null,null,null,null,"НІ",null,null,null,null,null,null,null,null,null,null,null,null,null,null,null,null,null,null,null,null,null,null,null,null,null,null,null,{"$f":"IF(S98=\"ТАК\",TRUE,FALSE)","v":true},null,{"$f":"IF(AZ98=TRUE,1,0)","v":1},null,null,null,"Відсутні трубопроводи гарячого водопостачання у будинку в неопалювальних приміщеннях  "]
[null,null,null,null,null,null,null,null,null,null,null,null,null,null,null,null,null,null,null,null,null,null,null,null,null,null,null,null,null,null,null,null,null,null,null,null,null,null,null,null,null,null,null,null,null,null,null,null,null,null,null,null,null,null,null,null,null,"Теплоізоляція трубопроводів гарячого водопостачання наявна, трубопровід та теплоізоляція візуально знаходиться в задовільному стані"]
[null,null,null,null,null,null,null,null,null,null,null,null,null,null,null,null,null,null,null,null,null,null,null,null,null,null,null,null,null,null,null,null,null,null,null,null,null,null,null,null,null,null,null,null,null,null,null,null,null,null,null,null,null,null,null,null,null,"50 % і більше споживачів перейшли на індивідуальні системи гарячого водопостачання"]
[null,null,null,null,null,null,null,null,null,null,null,null,null,null,null,null,null,null,null,null,null,null,null,null,null,null,null,null,null,null,null,null,null,null,null,null,null,null,null,null,null,null,null,null,null,null,null,null,null,null,null,null,null,null,null,null,null,"Технічна неможливість впровадження:"]
[null,null,null,null,"4.1.6",null,null,"Гідравлічне балансування системи опалення шляхом встановлення автоматичних (балансувальних) клапанів",null,null,null,null,null,null,null,null,null,null,"ТАК",null,null,null,null,"НІ",null,null,null,null,null,null,null,null,null,null,null,null,null,null,null,null,null,null,null,null,null,null,null,null,null,null,null,{"$f":"IF(S102=\"ТАК\",TRUE,FALSE)","v":true},null,{"$f":"IF(AZ102=TRUE,1,0)","v":1},null,null,"Автоматичні або ручні балансувальні клапани встановлено на всіх стояках або по групах стояків  ","Захід впроваджується або планується до впровадження третіми сторонами "]
[null,null,null,null,null,null,null,null,null,null,null,null,null,null,null,null,null,null,null,null,null,null,null,null,null,null,null,null,null,null,null,null,null,null,null,null,null,null,null,null,null,null,null,null,null,null,null,null,null,null,null,null,null,null,null,null,"50 % і більше споживачів перейшли на індивідуальне опалення"]
[null,null,null,null,null,null,null,null,null,null,null,null,null,null,null,null,null,null,null,null,null,null,null,null,null,null,null,null,null,null,null,null,null,null,null,null,null,null,null,null,null,null,null,null,null,null,null,null,null,null,null,null,null,null,null,null,"Для двотрубної системи у вузлах обв’язки опалювальних приладів встановлені, чи будуть встановлюватися в рамках Проекту, терморегулятори чи електронні регулятори (з функцією автоматичного регулювання перепаду тиску або обмеження витрати теплоносія) "]
[null,null,null,null,null,null,null,null,null,null,null,null,null,null,null,null,null,null,null,null,null,null,null,null,null,null,null,null,null,null,null,null,null,null,null,null,null,null,null,null,null,null,null,null,null,null,null,null,null,null,null,null,null,null,null,null,"Технічна неможливість впровадження:"]
[null,null,null,null,"4.1.7",null,null,"Комплекс робіт із теплоізоляції та улаштування зовнішніх стін ",null,null,null,null,null,null,null,null,null,null,"ТАК",null,null,null,null,"НІ",null,null,null,null,null,null,null,null,null,null,null,null,null,null,null,null,null,null,null,null,null,null,null,null,null,null,null,{"$f":"IF(AZ2=FALSE,IF(S106=\"ТАК\",TRUE,FALSE),FALSE)","v":true},null,{"$f":"IF(AZ106=TRUE,1,0)","v":1},null,null,"Захід впроваджується або планується до впровадження третіми сторонами ","Наявне суцільне утеплення зовнішніх стін та простий період окупності заходу (без врахування виплати часткового відшкодування) більше 25 років. "]
[null,null,null,null,null,null,null,null,null,null,null,null,null,null,null,null,null,null,null,null,null,null,null,null,null,null,null,null,null,null,null,null,null,null,null,null,null,null,null,null,null,null,null,null,null,null,null,null,null,null,null,null,null,null,null,null,null,"Опір теплопередачі огороджуючих конструкцій відповідає вимогам  ДБН В.2.6-31:2016."]
[null,null,null,null,"4.1.8",null,null,"Комплекс робіт із теплоізоляції та улаштування опалювальних та неопалювальних горищ (технічних поверхів) та дахів",null,null,null,null,null,null,null,null,null,null,"ТАК",null,null,null,null,"НІ",null,null,null,null,null,null,null,null,null,null,null,null,null,null,null,null,null,null,null,null,null,null,null,null,null,null,null,{"$f":"IF(AZ2=FALSE,IF(S108=\"ТАК\",TRUE,FALSE),FALSE)","v":true},null,{"$f":"IF(AZ108=TRUE,1,0)","v":1},null,null,null,"Фасад будівлі підпадає під дію охорони об’єктів та/або пам’яток культурної спадщини згідно Законом України  «Про охорону культурної спадщини» №1805-ІІІ від 8 червня 2000 року."]
[null,null,null,null,null,null,null,null,null,null,null,null,null,null,null,null,null,null,null,null,null,null,null,null,null,null,null,null,null,null,null,null,null,null,null,null,null,null,null,null,null,null,null,null,null,null,null,null,null,null,null,null,null,null,null,null,"Опір теплопередачі огороджуючих конструкцій відповідає вимогам  ДБН В.2.6-31:2016.","Технічна неможливість впровадження:"]
[null,null,null,null,null,null,null,null,null,null,null,null,null,null,null,null,null,null,null,null,null,null,null,null,null,null,null,null,null,null,null,null,null,null,null,null,null,null,null,null,null,null,null,null,null,null,null,null,null,null,null,null,null,null,null,null,"Простий період окупності заходу (без врахування виплати часткового відшкодування) перевищує 15 років","Захід впроваджується або планується до впровадження третіми сторонами "]
[null,null,null,null,null,null,null,null,null,null,null,null,null,null,null,null,null,null,null,null,null,null,null,null,null,null,null,null,null,null,null,null,null,null,null,null,null,null,null,null,null,null,null,null,null,null,null,null,null,null,null,null,null,null,null,null,"Технічна неможливість впровадження:"]
[null,null,null,null,"4.1.9",null,null,"Комплекс робіт із теплоізоляції та улаштування плит перекриття підвалу",null,null,null,null,null,null,null,null,null,null,"ТАК",null,null,null,null,"НІ",null,null,null,null,null,null,null,null,null,null,null,null,null,null,null,null,null,null,null,null,null,null,null,null,null,null,null,{"$f":"IF(AZ2=FALSE,IF(S112=\"ТАК\",TRUE,FALSE),FALSE)","v":true},null,{"$f":"IF(AZ112=TRUE,1,0)","v":1},null,null,"Захід впроваджується або планується до впровадження третіми сторонами ","Опір теплопередачі огороджуючих конструкцій відповідає вимогам  ДБН В.2.6-31:2016."]
[null,null,null,null,null,null,null,null,null,null,null,null,null,null,null,null,null,null,null,null,null,null,null,null,null,null,null,null,null,null,null,null,null,null,null,null,null,null,null,null,null,null,null,null,null,null,null,null,null,null,null,null,null,null,null,null,null,"Простий період окупності заходу (без врахування виплати часткового відшкодування) перевищує 15 років"]
[null,null,null,null,null,null,null,null,null,null,null,null,null,null,null,null,null,null,null,null,null,null,null,null,null,null,null,null,null,null,null,null,null,null,null,null,null,null,null,null,null,null,null,null,null,null,null,null,null,null,null,null,null,null,null,null,null,"Технічна неможливість впровадження:"]
[null,null,null,null,"4.1.10",null,null,"Заміна або ремонт зовнішніх дверей або/та облаштування тамбурів зовнішнього входу",null,null,null,null,null,null,null,null,null,null,"ТАК",null,null,null,null,"НІ",null,null,null,null,null,null,null,null,null,null,null,null,null,null,null,null,null,null,null,null,null,null,null,null,null,null,null,{"$f":"IF(AZ2=FALSE,IF(S115=\"ТАК\",TRUE,FALSE),FALSE)","v":true},null,{"$f":"IF(AZ115=TRUE,1,0)","v":1},null,null,null,"Захід впроваджується або планується до впровадження третіми сторонами "]
[null,null,null,null,null,null,null,null,null,null,null,null,null,null,null,null,null,null,null,null,null,null,null,null,null,null,null,null,null,null,null,null,null,null,null,null,null,null,null,null,null,null,null,null,null,null,null,null,null,null,null,null,null,null,null,null,"Зовнішні двері знаходяться в задовільному стані"]
[null,null,null,null,null,null,null,null,null,null,null,null,null,null,null,null,null,null,null,null,null,null,null,null,null,null,null,null,null,null,null,null,null,null,null,null,null,null,null,null,null,null,null,null,null,null,null,null,null,null,null,null,null,null,null,null,"Технічна неможливість впровадження:"]
[null,null,null,null,"4.1.11",null,null,"Заміна або ремонт блоків віконних або/та блоків балконних дверних у приміщеннях (місцях) загального користування будівлі",null,null,null,null,null,null,null,null,null,null,"ТАК",null,null,null,null,"НІ",null,null,null,null,null,null,null,null,null,null,null,null,null,null,null,null,null,null,null,null,null,null,null,null,null,null,null,{"$f":"IF(AZ2=FALSE,IF(S118=\"ТАК\",TRUE,FALSE),FALSE)","v":true},null,{"$f":"IF(AZ118=TRUE,1,0)","v":1},null,null,"Захід впроваджується або планується до впровадження третіми сторонами "]
[null,null,null,null,null,null,null,null,null,null,null,null,null,null,null,null,null,null,null,null,null,null,null,null,null,null,null,null,null,null,null,null,null,null,null,null,null,null,null,null,null,null,null,null,null,null,null,null,null,null,null,null,null,null,null,null,"Блоки віконні та блоки балконні дверні у приміщеннях (місцях) загального користування будівлі знаходяться в задовільному стані "]
[null,null,null,null,null,null,null,null,null,null,null,null,null,null,null,null,null,null,null,null,null,null,null,null,null,null,null,null,null,null,null,null,null,null,null,null,null,null,null,null,null,null,null,null,null,null,null,null,null,null,null,null,null,null,null,null,"Технічна неможливість впровадження:"]
[null,null,null,null,null,null,null,null,null,null,null,null,null,null,null,null,null,null,null,null,null,null,null,null,null,null,null,null,null,null,null,null,null,null,null,null,null,null,null,null,null,null,null,null,null,null,null,null,null,null,null,null,null,null,null,null,"Захід впроваджується або планується до впровадження третіми сторонами "]
[]
[]
[null,null,null,null,"* Допускається передбачати часткове виконання заходів, якщо:\n- інженерна система децентралізована та зміна її технічних характеристик не впливає на інших споживачів будинку (наприклад встановлення рекуператорів);\n- зміна характеристик елементу централізованої інженерної системи не змінює її характеристики в цілому (наприклад заміна опалювальних приладів на прилади з аналогічною чи розрахунковою потужністю);\n- окремі елементи в розрізі обов’язкових заходів підпадають під допустимі підстави виключення обов’язкових заходів (наприклад часткова теплоізоляція трубопроводів, заміна вікон/зовнішніх дверей в місцях загального користування) або окремі елементи огороджувальних конструкцій підпадають під дію охорони об’єктів та/або пам’яток культурної спадщини згідно з Закону України «Про охорону культурної спадщини»;\n- заміна окремих елементів в розрізі додаткових заходів недоцільна на розсуд енергоаудитора/Заявника (наприклад часткова заміна вікон в квартирах, модернізація системи освітлення)."]
[]
[]
[]
[]
[]
[]
[]
[]
[]
[]
[null,null,null,null,"** Обов’язкові заходи виключаються зі складу проекту тільки за виконання умов зазначених у допустимих підставах виключення заходів з переліку обов'язкових відповідно до Додатку 5 цієї Програми. ОСББ може прийняти рішення про впровадження такого(их) заходів навіть при виконанні зазначених умов. Про таке рішення ОСББ має бути зроблено відповідний запис у колонці «Опис підстави виключення заходу»."]
[]
[]
[]
[]
[null,null,null,null,"4.2А. Додаткові заходи для Пакету Заходів «А»"]
[null,null,null,null,"№",null,null,"Назва заходу",null,null,null,null,null,null,null,null,null,null,null,null,null,null,null,null,null,null,null,null,null,"Рішення про впровадження заходу (ТАК/НІ)"]
[]
[]
[null,null,null,null,"4.2А.1",null,null,"Комплекс робіт із теплоізоляції та улаштування опалювальних та неопалювальних горищ (технічних поверхів) та дахів",null,null,null,null,null,null,null,null,null,null,null,null,null,null,null,null,null,null,null,null,null,"ТАК",null,null,null,null,null,null,null,null,null,null,null,null,null,null,null,null,null,null,null,null,null,{"$f":"IF(AZ2=TRUE,IF(AD144=\"ТАК\",TRUE,FALSE),FALSE)","v":false},null,{"$f":"IF(AZ144=TRUE,1,0)","v":0}]
[]
[null,null,null,null,"4.2А.2",null,null,"Модернізація системи гарячого водопостачання",null,null,null,null,null,null,null,null,null,null,null,null,null,null,null,null,null,null,null,null,null,"ТАК",null,null,null,null,null,null,null,null,null,null,null,null,null,null,null,null,null,null,null,null,null,{"$f":"IF(AZ2=TRUE,IF(AD146=\"ТАК\",TRUE,FALSE),FALSE)","v":false},null,{"$f":"IF(AZ146=TRUE,1,0)","v":0}]
[]
[null,null,null,null,"4.2А.3",null,null,"Встановлення вузлів розподільного обліку теплової енергії на потреби опалення або/та приладів - розподілювачів теплової енергії у квартирах ",null,null,null,null,null,null,null,null,null,null,null,null,null,null,null,null,null,null,null,null,null,"ТАК",null,null,null,null,null,null,null,null,null,null,null,null,null,null,null,null,null,null,null,null,null,{"$f":"IF(AZ2=TRUE,IF(AD148=\"ТАК\",TRUE,FALSE),FALSE)","v":false},null,{"$f":"IF(AZ148=TRUE,1,0)","v":0}]
[]
[]
[null,null,null,null,"4.2А.4",null,null,"Встановлення автоматичних регуляторів температури повітря у приміщеннях на опалювальних приладах водяної системи опалення у квартирах або/та у приміщеннях (місцях) загального користування будівлі",null,null,null,null,null,null,null,null,null,null,null,null,null,null,null,null,null,null,null,null,null,"ТАК",null,null,null,null,null,null,null,null,null,null,null,null,null,null,null,null,null,null,null,null,null,{"$f":"IF(AZ2=TRUE,IF(AD151=\"ТАК\",TRUE,FALSE),FALSE)","v":false},null,{"$f":"IF(AZ151=TRUE,1,0)","v":0}]
[]
[]
[]
[null,null,null,null,"4.2А.5",null,null,"Заміна або/та теплоізоляція трубопроводів системи опалення або/та приладів водяної системи опалення у приміщеннях (місцях) загального користування будівлі",null,null,null,null,null,null,null,null,null,null,null,null,null,null,null,null,null,null,null,null,null,"ТАК",null,null,null,null,null,null,null,null,null,null,null,null,null,null,null,null,null,null,null,null,null,{"$f":"IF(AZ2=TRUE,IF(AD155=\"ТАК\",TRUE,FALSE),FALSE)","v":false},null,{"$f":"IF(AZ155=TRUE,1,0)","v":0}]
[]
[]
[null,null,null,null,"4.2А.6",null,null,"Заміна або ремонт блоків віконних або/та блоків балконних дверних у приміщеннях (місцях) загального користування будівлі ",null,null,null,null,null,null,null,null,null,null,null,null,null,null,null,null,null,null,null,null,null,"ТАК",null,null,null,null,null,null,null,null,null,null,null,null,null,null,null,null,null,null,null,null,null,{"$f":"IF(AZ2=TRUE,IF(AD158=\"ТАК\",TRUE,FALSE),FALSE)","v":false},null,{"$f":"IF(AZ158=TRUE,1,0)","v":0}]
[]
[]
[null,null,null,null,"4.2А.7",null,null,"Заміна або ремонт зовнішніх дверей або/та облаштування тамбурів зовнішнього входу",null,null,null,null,null,null,null,null,null,null,null,null,null,null,null,null,null,null,null,null,null,"ТАК",null,null,null,null,null,null,null,null,null,null,null,null,null,null,null,null,null,null,null,null,null,{"$f":"IF(AZ2=TRUE,IF(AD161=\"ТАК\",TRUE,FALSE),FALSE)","v":false},null,{"$f":"IF(AZ161=TRUE,1,0)","v":0}]
[]
[null,null,null,null,"4.2А.8",null,null,"Комплекс робіт із модернізації та облаштування системи освітлення у приміщеннях (місцях) загального користування будівлі ",null,null,null,null,null,null,null,null,null,null,null,null,null,null,null,null,null,null,null,null,null,"ТАК",null,null,null,null,null,null,null,null,null,null,null,null,null,null,null,null,null,null,null,null,null,{"$f":"IF(AZ2=TRUE,IF(AD163=\"ТАК\",TRUE,FALSE),FALSE)","v":false},null,{"$f":"IF(AZ163=TRUE,1,0)","v":0}]
[]
[]
[]
[]
[null,null,null,null,"4.2Б. Додаткові заходи для Пакету заходів «Б»"]
[null,null,null,null,"№",null,null,"Назва заходу",null,null,null,null,null,null,null,null,null,null,null,null,null,null,null,null,null,null,null,null,null,"Рішення про впровадження заходу (ТАК/НІ)"]
[]
[]
[null,null,null,null,"4.2Б.1",null,null,"Комплекс робіт із теплоізоляції та улаштування зовнішніх стін нижче рівня ґрунту",null,null,null,null,null,null,null,null,null,null,null,null,null,null,null,null,null,null,null,null,null,"ТАК",null,null,null,null,null,null,null,null,null,null,null,null,null,null,null,null,null,null,null,null,null,{"$f":"IF(AZ2=FALSE,IF(AD172=\"ТАК\",TRUE,FALSE),FALSE)","v":true},null,{"$f":"IF(AZ172=TRUE,1,0)","v":1}]
[]
[null,null,null,null,"4.2Б.2",null,null,"Модернізація системи гарячого водопостачання",null,null,null,null,null,null,null,null,null,null,null,null,null,null,null,null,null,null,null,null,null,"ТАК",null,null,null,null,null,null,null,null,null,null,null,null,null,null,null,null,null,null,null,null,null,{"$f":"IF(AZ2=FALSE,IF(AD174=\"ТАК\",TRUE,FALSE),FALSE)","v":true},null,{"$f":"IF(AZ174=TRUE,1,0)","v":1}]
[]
[null,null,null,null,"4.2Б.3",null,null,"Заміна або/та теплоізоляція трубопроводів системи опалення або/та приладів водяної системи опалення у приміщеннях (місцях) загального користування будівлі",null,null,null,null,null,null,null,null,null,null,null,null,null,null,null,null,null,null,null,null,null,"ТАК",null,null,null,null,null,null,null,null,null,null,null,null,null,null,null,null,null,null,null,null,null,{"$f":"IF(AZ2=FALSE,IF(AD176=\"ТАК\",TRUE,FALSE),FALSE)","v":true},null,{"$f":"IF(AZ176=TRUE,1,0)","v":1}]
[]
[]
[null,null,null,null,"4.2Б.4",null,null,"Заміна або/та теплоізоляція трубопроводів системи опалення або/та приладів водяної системи опалення у квартирах",null,null,null,null,null,null,null,null,null,null,null,null,null,null,null,null,null,null,null,null,null,"ТАК",null,null,null,null,null,null,null,null,null,null,null,null,null,null,null,null,null,null,null,null,null,{"$f":"IF(AZ2=FALSE,IF(AD179=\"ТАК\",TRUE,FALSE),FALSE)","v":true},null,{"$f":"IF(AZ179=TRUE,1,0)","v":1}]
[]
[null,null,null,null,"4.2Б.5",null,null,"Встановлення вузлів розподільного обліку теплової енергії на потреби опалення або/та приладів - розподілювачів теплової енергії у квартирах",null,null,null,null,null,null,null,null,null,null,null,null,null,null,null,null,null,null,null,null,null,"ТАК",null,null,null,null,null,null,null,null,null,null,null,null,null,null,null,null,null,null,null,null,null,{"$f":"IF(AZ2=FALSE,IF(AD181=\"ТАК\",TRUE,FALSE),FALSE)","v":true},null,{"$f":"IF(AZ181=TRUE,1,0)","v":1}]
[]
[]
[null,null,null,null,"4.2Б.6",null,null,"Встановлення автоматичних регуляторів температури повітря у приміщеннях на опалювальних приладах водяної системи опалення у квартирах або/та у приміщеннях (місцях) загального користування будівлі",null,null,null,null,null,null,null,null,null,null,null,null,null,null,null,null,null,null,null,null,null,"ТАК",null,null,null,null,null,null,null,null,null,null,null,null,null,null,null,null,null,null,null,null,null,{"$f":"IF(AZ2=FALSE,IF(AD184=\"ТАК\",TRUE,FALSE),FALSE)","v":true},null,{"$f":"IF(AZ184=TRUE,1,0)","v":1}]
[]
[]
[]
[null,null,null,null,"4.2Б.7",null,null,"Заміна або ремонт блоків віконних або/та блоків балконних дверних у квартирах, утеплення і скління наявних балконів і лоджій",null,null,null,null,null,null,null,null,null,null,null,null,null,null,null,null,null,null,null,null,null,"ТАК",null,null,null,null,null,null,null,null,null,null,null,null,null,null,null,null,null,null,null,null,null,{"$f":"IF(AZ2=FALSE,IF(AD188=\"ТАК\",TRUE,FALSE),FALSE)","v":true},null,{"$f":"IF(AZ188=TRUE,1,0)","v":1}]
[]
[]
[null,null,null,null,"4.2Б.8",null,null,"Комплекс робіт із модернізації та облаштування системи освітлення у приміщеннях (місцях) загального користування будівлі",null,null,null,null,null,null,null,null,null,null,null,null,null,null,null,null,null,null,null,null,null,"ТАК",null,null,null,null,null,null,null,null,null,null,null,null,null,null,null,null,null,null,null,null,null,{"$f":"IF(AZ2=FALSE,IF(AD191=\"ТАК\",TRUE,FALSE),FALSE)","v":true},null,{"$f":"IF(AZ191=TRUE,1,0)","v":1}]
[]
[]
[null,null,null,null,"4.2Б.9",null,null,"Комплекс робіт із модернізації та облаштування системи вентиляції з встановленням рекуператорів",null,null,null,null,null,null,null,null,null,null,null,null,null,null,null,null,null,null,null,null,null,"ТАК",null,null,null,null,null,null,null,null,null,null,null,null,null,null,null,null,null,null,null,null,null,{"$f":"IF(AZ2=FALSE,IF(AD194=\"ТАК\",TRUE,FALSE),FALSE)","v":true},null,{"$f":"IF(AZ194=TRUE,1,0)","v":1}]
[]
[null,null,null,null,"4.2Б.10",null,null,"Інші типи модернізації системи внутрішнього теплопостачання",null,null,null,null,null,null,null,null,null,null,null,null,null,null,null,null,null,null,null,null,null,"ТАК",null,null,null,null,null,null,null,null,null,null,null,null,null,null,null,null,null,null,null,null,null,{"$f":"IF(AZ2=FALSE,IF(AD196=\"ТАК\",TRUE,FALSE),FALSE)","v":true},null,{"$f":"IF(AZ196=TRUE,1,0)","v":1}]
[]
[]
[]
[null,null,null,null,"8. ФІНАНСОВИЙ ПЛАН РЕАЛІЗАЦІЇ ПРОЕКТУ"]
[null,null,null,null,"№",null,null,"Стаття витрат",null,null,null,null,null,null,null,null,null,null,null,null,null,null,null,"Оцінка вартості, грн. з ПДВ",null,null,null,null,null,null,"Розмір відшкодування за умовами Програми підтримки енергомодернізації\nбагатоквартирних будинків\n«ЕНЕРГОДІМ», %"]
[]
[]
[]
[]
[null,null,null,null,1,null,null,2,null,null,null,null,null,null,null,null,null,null,null,null,null,null,null,3,null,null,null,null,null,null,4]
[]
[null,null,null,null,"8.1",null,null,"Проведення енергоаудиту",null,null,null,null,null,null,null,null,null,null,null,null,null,null,null,null,null,null,null,null,null,null,70]
[]
[null,null,null,null,"8.2",null,null,"Розробка проектної документації та її експертиза",null,null,null,null,null,null,null,null,null,null,null,null,null,null,null,null,null,null,null,null,null,null,70]
[]
[null,null,null,null,"8.3",null,null,"Будівельні роботи",null,null,null,null,null,null,null,null,null,null,null,null,null,null,null,null,null,null,null,null,null,null,{"$f":"IF(AZ2=TRUE,\"40*\",\"50*\")","v":"50*"}]
[]
[null,null,null,null,"8.4",null,null,"Технічний та авторський нагляд",null,null,null,null,null,null,null,null,null,null,null,null,null,null,null,null,null,null,null,null,null,null,70]
[]
[null,null,null,null,"8.5",null,null,"Сертифікація енергоефективності після реалізації проекту ",null,null,null,null,null,null,null,null,null,null,null,null,null,null,null,null,null,null,null,null,null,null,70]
[]
[null,null,null,null,"8.6",null,null,"Обстеження інженерних систем будівлі, на яких здійснено заходи із забезпечення (підвищення рівня) енергетичної ефективності",null,null,null,null,null,null,null,null,null,null,null,null,null,null,null,null,null,null,null,null,null,null,70]
[]
[]
[null,null,null,null,"8.7",null,null,"Всього",null,null,null,null,null,null,null,null,null,null,null,null,null,null,null,{"$f":"X208+X210+X212+X214+X216+X218","v":0},null,null,null,null,null,null,"Х"]
[]
[null,null,null,null,{"$f":"IF(AZ2=TRUE,\"* Для перших 500 заявок розмір гранту становить 60%.\",\"* Для перших 500 заявок розмір гранту становить 70%.\")","v":"* Для перших 500 заявок розмір гранту становить 70%."}]
[]
[]
[null,null,null,null,"Інженер - проектувальник:"]
[]
[null,null,null,null,"(ПІБ, кваліфікаційний сертифікат інженера-проектувальника)",null,null,null,null,null,null,null,null,null,null,null,null,null,null,null,null,null,null,null,null,null,null,null,null,null,null,null,"   (підпис) (МП)"]
[]
[]
[]
[null,null,null,null,"Голова правління ОСББ:"]
[]
[null,null,null,null,"(ПІБ)",null,null,null,null,null,null,null,null,null,null,null,null,null,null,null,null,null,null,null,null,null,null,null,null,null,null,null,"   (підпис) (МП)"]